fUSD/lending_fUSD_20250205
["ID","MTS","AMOUNT","RATE_DAILY","PERIOD"]
[351682244,1738717842402,-729.45,0.00011173,2]
[351682245,1738717842411,-500.0,0.00011173,2]
[351682246,1738717842420,-500.0,0.00011173,2]
[351682247,1738717842429,-500.0,0.00011173,2]
[351682248,1738717842439,-586.29446836,0.00011173,2]
[351682249,1738717842448,-500.0,0.00011173,2]
[351682250,1738717842457,-500.0,0.00011173,2]
[351682251,1738717842466,-500.0,0.00011173,2]
[351682252,1738717842475,-500.0,0.00011173,2]
[351682253,1738717842485,-500.0,0.00011173,2]
[351682254,1738717842495,-500.0,0.00011173,2]
[351682255,1738717842505,-500.0,0.00011173,2]
[351682256,1738717842514,-500.0,0.00011173,2]
[351682257,1738717842523,-500.0,0.00011173,2]
[351682258,1738717842533,-500.0,0.00011173,2]
[351682259,1738717842543,-166.29,0.00011173,2]
[351682260,1738717842553,-199.11,0.00011173,2]
[351682261,1738717842562,-500.0,0.00011173,2]
[351682262,1738717842571,-500.0,0.00011173,2]
[351682263,1738717842581,-500.0,0.00011173,2]
[351682264,1738717842590,-500.0,0.00011173,2]
[351682265,1738717842600,-286.76561005,0.00011173,2]
[351682266,1738717842609,-500.0,0.00011173,2]
[351682267,1738717842618,-628.38,0.00011173,2]
[351682268,1738717842627,-500.0,0.00011173,2]
[351682269,1738717842637,-500.0,0.00011173,2]
[351682270,1738717842646,-500.0,0.00011173,2]
[351682271,1738717842655,-500.0,0.00011173,2]
[351682272,1738717842665,-500.0,0.00011173,2]
[351682273,1738717842674,-523.47,0.00011173,2]
[351682274,1738717842684,-500.0,0.00011173,2]
[351682275,1738717842694,-637.22,0.00011173,2]
[351682278,1738717842704,-500.0,0.00011173,2]
[351682280,1738717842713,-500.0,0.00011173,2]
[351682283,1738717842723,-500.0,0.00011173,2]
[351682286,1738717842732,-500.0,0.00011173,2]
[351682289,1738717842741,-500.0,0.00011173,2]
[351682292,1738717842752,-500.0,0.00011173,2]
[351682293,1738717842762,-500.0,0.00011173,2]
[351682294,1738717842771,-500.0,0.00011173,2]
[351682295,1738717842781,-500.0,0.00011173,2]
[351682297,1738717842791,-500.0,0.00011173,2]
[351682298,1738717842800,-500.0,0.00011173,2]
[351682299,1738717842810,-500.0,0.00011173,2]
[351682300,1738717842820,-500.0,0.00011173,2]
[351682302,1738717842829,-500.0,0.00011173,2]
[351682304,1738717842839,-877.9,0.00011178,2]
[351682305,1738717842849,-250.62,0.00011178,2]
[351682307,1738717842858,-150.0,0.00011178,2]
[351682309,1738717842868,-150.0,0.00011178,2]
[351682311,1738717842877,-150.0,0.00011178,2]
[351682313,1738717842887,-439.0,0.00011205,2]
[351682314,1738717842896,-182.62,0.00011212,2]
[351682315,1738717842906,-500.0,0.00011212,2]
[351682317,1738717842915,-177.66,0.00011212,2]
[351682318,1738717842925,-613.04,0.00011212,2]
[351682319,1738717842934,-500.0,0.00011212,2]
[351682320,1738717842944,-500.0,0.00011212,2]
[351682321,1738717842954,-377.18,0.00011212,2]
[351682322,1738717842963,-150.0,0.00011226,2]
[351682324,1738717842973,-150.0,0.00011233,2]
[351682325,1738717842983,-150.0,0.00011237,2]
[351682326,1738717842992,-150.0,0.00011246,2]
[351682327,1738717843004,-150.0,0.00011247,2]
[351682328,1738717843015,-1000.0,0.00011249,2]
[351682329,1738717843025,-150.0,0.00011259,2]
[351682330,1738717843035,-150.0,0.0001126,2]
[351682331,1738717843045,-150.0,0.00011271,2]
[351682332,1738717843055,-1000.0,0.00011278,2]
[351682333,1738717843065,-150.0,0.00011279,2]
[351682334,1738717843075,-150.0,0.0001128,2]
[351682335,1738717843084,-150.0,0.00011282,2]
[351682336,1738717843095,-150.0,0.00011283,2]
[351682337,1738717843105,-150.0,0.00011284,2]
[351682338,1738717843115,-4000.0,0.0001129,2]
[351682339,1738717843126,-150.0,0.00011297,2]
[351682340,1738717843141,-368.59304271,0.000113,2]
[351682341,1738717843152,-1000.0,0.000113,2]
[351682342,1738717843162,-150.0,0.00011305,2]
[351682343,1738717843174,-150.0,0.00011306,2]
[351682344,1738717843184,-150.0,0.00011309,2]
[351682345,1738717843193,-500.0,0.00011309,2]
[351682346,1738717843203,-500.0,0.00011309,2]
[351682347,1738717843213,-263.792617,0.0001131,2]
[351682348,1738717843224,-415.096485,0.0001131,2]
[351682349,1738717843234,-178.65,0.0001131,2]
[351682350,1738717843243,-296.58,0.0001131,2]
[351682351,1738717843254,-500.0,0.0001131,2]
[351682352,1738717843265,-500.0,0.0001131,2]
[351682353,1738717843286,-500.0,0.0001131,2]
[351682354,1738717843297,-500.0,0.0001131,2]
[351682355,1738717843308,-500.0,0.0001131,2]
[351682356,1738717843317,-500.0,0.0001131,2]
[351682357,1738717843327,-500.0,0.0001131,2]
[351682358,1738717843337,-839.71,0.0001131,2]
[351682359,1738717843347,-726.83,0.0001131,2]
[351682360,1738717843356,-500.0,0.0001131,2]
[351682361,1738717843366,-500.0,0.0001131,2]
[351682362,1738717843375,-241.76177964,0.0001131,2]
[351682363,1738717843385,-500.0,0.0001131,2]
[351682364,1738717843394,-500.0,0.0001131,2]
[351682365,1738717843404,-500.0,0.0001131,2]
[351682366,1738717843413,-729.45,0.0001131,2]
[351682367,1738717843423,-500.0,0.0001131,2]
[351682368,1738717843432,-500.0,0.0001131,2]
[351682369,1738717843442,-500.0,0.0001131,2]
[351682370,1738717843452,-500.0,0.0001131,2]
[351682371,1738717843462,-500.0,0.0001131,2]
[351682372,1738717843472,-500.0,0.0001131,2]
[351682373,1738717843482,-500.0,0.0001131,2]
[351682374,1738717843491,-625.77,0.0001131,2]
[351682375,1738717843501,-500.0,0.0001131,2]
[351682376,1738717843511,-500.0,0.0001131,2]
[351682377,1738717843521,-500.0,0.0001131,2]
[351682378,1738717843530,-500.0,0.0001131,2]
[351682379,1738717843540,-500.0,0.0001131,2]
[351682380,1738717843550,-500.0,0.0001131,2]
[351682381,1738717843560,-500.0,0.0001131,2]
[351682382,1738717843569,-500.0,0.0001131,2]
[351682383,1738717843579,-500.0,0.0001131,2]
[351682384,1738717843589,-500.0,0.0001131,2]
[351682386,1738717843599,-628.38,0.0001131,2]
[351682387,1738717843608,-500.0,0.0001131,2]
[351682388,1738717843617,-500.0,0.0001131,2]
[351682389,1738717843627,-500.0,0.0001131,2]
[351682390,1738717843637,-503.25,0.0001131,2]
[351682391,1738717843647,-500.0,0.0001131,2]
[351682392,1738717843657,-500.0,0.0001131,2]
[351682393,1738717843669,-637.22,0.0001131,2]
[351682394,1738717843679,-589.17,0.0001131,2]
[351682395,1738717843690,-500.0,0.0001131,2]
[351682396,1738717843703,-500.0,0.0001131,2]
[351682397,1738717843714,-500.0,0.0001131,2]
[351682398,1738717843724,-500.0,0.0001131,2]
[351682399,1738717843734,-240.76,0.0001131,2]
[351682400,1738717843743,-500.0,0.0001131,2]
[351682401,1738717843754,-500.0,0.0001131,2]
[351682402,1738717843764,-500.0,0.0001131,2]
[351682403,1738717843774,-500.0,0.0001131,2]
[351682404,1738717843783,-500.0,0.0001131,2]
[351682405,1738717843793,-368.59304268,0.00011317,2]
[351682406,1738717843803,-150.0,0.00011318,2]
[351682407,1738717843813,-150.0,0.00011321,2]
[351682408,1738717843823,-150.0,0.00011324,2]
[351682409,1738717843832,-37380.68893726,0.00011327,2]
[351682410,1738717843840,-150.0,0.00011328,2]
[351682411,1738717843850,-150.0,0.0001133,2]
[351682412,1738717843860,-368.59304268,0.00011333,2]
[351682413,1738717843870,-150.0,0.00011336,2]
[351682414,1738717843879,-150.0,0.00011347,2]
[351682415,1738717843889,-165.19071387,0.00011348,2]
[351682416,1738717843948,-500.0,0.00011349,2]
[351682417,1738717843958,-500.0,0.00011349,2]
[351682418,1738717843967,-368.59304268,0.0001135,2]
[351682419,1738717843977,-500.0,0.00011358,2]
[351682420,1738717843986,-2000.0,0.00011358,2]
[351682421,1738717843996,-200.0,0.00011358,2]
[351682422,1738717844005,-368.59304268,0.00011367,2]
[351682423,1738717844015,-500.0,0.00011373,2]
[351682424,1738717844025,-500.0,0.00011373,2]
[351682425,1738717844035,-150.0,0.00011377,2]
[351682426,1738717844044,-368.59304268,0.00011383,2]
[351682427,1738717844054,-150.0,0.0001139,2]
[351682428,1738717844063,-300.0,0.00011399,2]
[351682429,1738717844073,-2041.0,0.00011399,2]
[351682430,1738717844084,-500.0,0.00011399,2]
[351682431,1738717844093,-300.0,0.00011399,2]
[351682432,1738717844103,-466.17352482,0.00011399,2]
[351682433,1738717844112,-235.5702155,0.00011399,2]
[351682434,1738717844125,-217346.29218076,0.00011399,2]
[351682435,1738717844378,-1959.9999998,0.00011399,2]
[351682436,1738717844552,-500.0,0.00010899,2]
[351682437,1738717844561,-382.58453166,0.00011399,2]
[351682438,1738717844573,-16602.05338463,0.00011399,2]
[351682439,1738717844592,-8661.20091581,0.00011399,2]
[351682440,1738717844610,-16542.33492125,0.00011399,2]
[351682441,1738717844726,-395.832084,0.00010899,2]
[351682442,1738717844737,-104.167916,0.00010899,2]
[351682443,1738717844747,-500.0,0.00010899,2]
[351682444,1738717844757,-500.0,0.00010899,2]
[351682445,1738717844767,-500.0,0.00011036,2]
[351682446,1738717844776,-818.85683819,0.00011399,2]
[351682447,1738717844788,-1518.62616577,0.00011399,2]
[351682448,1738717844799,-260.51,0.00011399,2]
[351682449,1738717844811,-2038.6,0.00011399,2]
[351682450,1738717844822,-48700.00057345,0.00011399,2]
[351682451,1738717844840,-1399.79399091,0.00011399,2]
[351682452,1738717844851,-332.5275168,0.00011399,2]
[351682453,1738717844864,-391.596,0.00011399,2]
[351682454,1738717844878,-463.45,0.00011399,2]
[351682455,1738717844891,-265.21225667,0.00011399,2]
[351682456,1738717844903,-4775.55,0.00011399,2]
[351682457,1738717845128,-123875.26095968,0.00011399,2]
[351682458,1738717845143,-3506.91613982,0.00011399,2]
[351682459,1738717845155,-1876.14972,0.00011399,2]
[351682460,1738717845167,-535.02444576,0.00011399,2]
[351682461,1738717845311,-500.0,0.00010899,2]
[351682462,1738717845320,-500.0,0.00010899,2]
[351682463,1738717845329,-500.0,0.00010899,2]
[351682464,1738717845338,-431.84147095,0.00011036,2]
[351682465,1738717845348,-16817.83850745,0.00011399,2]
[351682466,1738717845359,-47813.61415724,0.00011399,2]
[351682467,1738717845371,-4475.60002,0.00011399,2]
[351682468,1738717845389,-500.0,0.00011036,2]
[351682469,1738717845398,-175.424955,0.00011399,2]
[351682470,1738717845409,-1443.64072596,0.00011399,2]
[351682471,1738717845420,-289.937,0.00011399,2]
[351682472,1738717845431,-15300.0,0.00011399,2]
[351682473,1738717845442,-585.0919994,0.00011399,2]
[351682474,1738717845453,-326.91571635,0.00011399,2]
[351682475,1738717845465,-962.73992158,0.00011399,2]
[351682476,1738717845476,-1050.76466996,0.00011399,2]
[351682511,1738717846125,-500.0,0.00010899,2]
[351682512,1738717846136,-595.39,0.00010899,2]
[351682513,1738717846146,-500.0,0.00011036,2]
[351682514,1738717846155,-500.0,0.00011173,2]
[351682515,1738717846164,-9619.426858,0.00011399,2]
[351682516,1738717846189,-6419.31908322,0.00011399,2]
[351682517,1738717846481,-83393.00030362,0.00011399,2]
[351682518,1738717846492,-594.86249076,0.00011399,2]
[351682519,1738717846543,-2576.249998,0.00011399,2]
[351682520,1738717846555,-6311.249995,0.00011399,2]
[351682521,1738717846566,-4336.000006,0.00011399,2]
[351682522,1738717846576,-1105.2498,0.00011399,2]
[351682523,1738717846587,-4838.099988,0.00011399,2]
[351682524,1738717846598,-1458.0,0.00011399,2]
[351682526,1738717846610,-3334.5,0.00011399,2]
[351682528,1738717846621,-6253.399999,0.00011399,2]
[351682529,1738717846631,-1127.69891755,0.00011399,2]
[351682530,1738717846642,-257.36500011,0.00011399,2]
[351682531,1738717890802,150.0,0.00017134,120]
[351682533,1738717898786,221.7333,8.699e-05,2]
[351682534,1738717951286,150.0,0.00018792,120]
[351682535,1738718011274,150.0,0.00018815,120]
[351682537,1738718130743,150.0,0.00018693,120]
[351682538,1738718183943,164.80525009,0.000189,120]
[351682539,1738718310758,150.0,0.00018868,120]
[351682540,1738718345295,681.53,8.353e-05,2]
[351682542,1738718670754,150.0,0.0001763,120]
[351682543,1738718672059,-13164.6804,8.973e-05,2]
[351682544,1738718672079,-819.71028178,9.781e-05,7]
[351682545,1738718672101,-150.0,9.804e-05,2]
[351682546,1738718672123,-1000.0,9.805e-05,2]
[351682547,1738718672145,-19865.60931822,9.805e-05,2]
[351682549,1738718730741,150.0,0.00017666,120]
[351682550,1738718741642,26066.50137581,8.8e-05,2]
[351682551,1738718791306,150.0,0.00018194,120]
[351682589,1738718850950,150.0,0.00017734,120]
[351682601,1738719003360,456.19821804,8.765e-05,2]
[351682602,1738719003660,456.19821804,8.766e-05,2]
[351682603,1738719003939,456.19821804,8.782e-05,2]
[351682604,1738719004228,456.19821804,8.745e-05,2]
[351682605,1738719010501,200.0,8.752e-05,2]
[351682630,1738719032733,-403.7509,8.973e-05,2]
[351682631,1738719032742,-976.53770735,9.781e-05,7]
[351682632,1738719032751,-4034.39068178,9.805e-05,2]
[351682633,1738719032760,-155.460344,9.999e-05,2]
[351682634,1738719032768,-144777.21855458,0.0001,2]
[351682635,1738719032953,-38300.90151508,0.0001,2]
[351682636,1738719032964,-786.96,0.0001,2]
[351682637,1738719032976,-368.49929451,0.0001,2]
[351682638,1738719033046,-21733.93524887,0.0001,2]
[351682657,1738719038283,-1590.4631089,0.0001,2]
[351682658,1738719038292,-114.29097227,0.00010119,2]
[351682659,1738719038304,-271.82507983,0.00010119,2]
[351682660,1738719038366,-613.8839479,0.00010119,2]
[351682661,1738719038377,-251.28,0.00010119,2]
[351682662,1738719038386,-952.65,0.00010137,2]
[351682663,1738719038396,-222.45,0.00010224,2]
[351682664,1738719038405,-166.37,0.00010283,2]
[351682665,1738719038415,-5000.21676483,0.000103,2]
[351682666,1738719038424,-681.53,0.00010617,2]
[351682667,1738719038433,-155.460344,0.00010682,2]
[351682668,1738719038443,-300.89089685,0.00010859,2]
[351682669,1738719038452,-267.068138,0.00010873,2]
[351682670,1738719038462,-500.0,0.00010897,2]
[351682671,1738719038471,-500.0,0.00010897,2]
[351682672,1738719038485,-500.0,0.00010897,2]
[351682673,1738719038495,-187.93,0.00010897,2]
[351682674,1738719038504,-500.0,0.00010897,2]
[351682675,1738719038514,-500.0,0.00010897,2]
[351682676,1738719038526,-500.0,0.00010897,2]
[351682677,1738719038537,-508.92075166,0.00010897,2]
[351682678,1738719038546,-500.0,0.00010897,2]
[351682679,1738719038557,-520.29094255,0.00010897,2]
[351682680,1738719038567,-500.0,0.00010897,2]
[351682681,1738719038576,-507.9875178,0.00010897,2]
[351682682,1738719038586,-502.98568793,0.00010897,2]
[351682683,1738719038596,-501.1954929,0.00010897,2]
[351682684,1738719038606,-538.42128485,0.00010897,2]
[351682685,1738719038616,-505.03742664,0.00010897,2]
[351682686,1738719038626,-500.0,0.00010897,2]
[351682687,1738719038635,-506.82624511,0.00010897,2]
[351682688,1738719038645,-500.0,0.00010898,2]
[351682689,1738719038655,-500.0,0.00010898,2]
[351682690,1738719038664,-500.0,0.00010898,2]
[351682692,1738719038674,-500.0,0.00010898,2]
[351682694,1738719038683,-500.0,0.00010898,2]
[351682695,1738719038693,-500.0,0.00010898,2]
[351682696,1738719038703,-500.0,0.00010898,2]
[351682697,1738719038712,-500.0,0.00010898,2]
[351682698,1738719038722,-500.0,0.00010898,2]
[351682699,1738719038735,-500.0,0.00010898,2]
[351682700,1738719038744,-500.0,0.00010898,2]
[351682702,1738719038754,-500.0,0.00010898,2]
[351682703,1738719038764,-500.0,0.00010898,2]
[351682704,1738719038773,-500.0,0.00010898,2]
[351682705,1738719038782,-500.0,0.00010898,2]
[351682706,1738719039014,-604.84,0.00010898,2]
[351682707,1738719039024,-500.0,0.00010898,2]
[351682708,1738719039033,-500.0,0.00010898,2]
[351682709,1738719039043,-500.0,0.00010898,2]
[351682710,1738719039052,-500.0,0.00010898,2]
[351682711,1738719039061,-500.0,0.00010898,2]
[351682712,1738719039071,-500.0,0.00010898,2]
[351682713,1738719039079,-500.0,0.00010898,2]
[351682714,1738719039088,-500.0,0.00010898,2]
[351682715,1738719039097,-500.0,0.00010898,2]
[351682716,1738719039106,-500.0,0.00010898,2]
[351682717,1738719039115,-500.0,0.00010898,2]
[351682718,1738719039123,-500.0,0.00010898,2]
[351682719,1738719039132,-500.0,0.00010898,2]
[351682720,1738719039141,-500.0,0.00010898,2]
[351682721,1738719039149,-500.0,0.00010898,2]
[351682722,1738719039158,-500.0,0.00010898,2]
[351682723,1738719039166,-500.0,0.00010898,2]
[351682724,1738719039174,-500.0,0.00010898,2]
[351682725,1738719039183,-500.0,0.00010898,2]
[351682726,1738719039192,-500.0,0.00010898,2]
[351682727,1738719039201,-500.0,0.00010898,2]
[351682728,1738719039210,-500.0,0.00010898,2]
[351682729,1738719039219,-376.71,0.00010898,2]
[351682730,1738719039229,-372.8,0.00010898,2]
[351682731,1738719039239,-372.97,0.00010899,2]
[351682732,1738719039248,-374.87,0.00010899,2]
[351682733,1738719039259,-500.0,0.00010899,2]
[351682734,1738719039268,-604.31,0.00010899,2]
[351682735,1738719039278,-518.21,0.00010899,2]
[351682736,1738719039287,-500.0,0.00010899,2]
[351682737,1738719039297,-500.0,0.00010899,2]
[351682738,1738719039307,-500.0,0.00010899,2]
[351682739,1738719039317,-500.0,0.00010899,2]
[351682740,1738719039326,-500.0,0.00010899,2]
[351682741,1738719039335,-500.0,0.00010899,2]
[351682742,1738719039344,-500.0,0.00010899,2]
[351682743,1738719039353,-500.0,0.00010899,2]
[351682744,1738719039361,-500.0,0.00010899,2]
[351682745,1738719039369,-500.0,0.00010899,2]
[351682746,1738719039378,-500.0,0.00010899,2]
[351682747,1738719039387,-209.28562947,0.00010899,2]
[351682748,1738719039395,-500.0,0.00010899,2]
[351682749,1738719039404,-500.0,0.00010899,2]
[351682750,1738719039413,-500.0,0.00010899,2]
[351682751,1738719039423,-195.84761223,0.00010899,2]
[351682752,1738719039432,-226.11794083,0.00010899,2]
[351682753,1738719039441,-477.50330239,0.00010899,2]
[351682754,1738719039451,-500.0,0.00010899,2]
[351682755,1738719039460,-500.0,0.00010899,2]
[351682756,1738719039469,-426.01844767,0.00010899,2]
[351682757,1738719039483,-500.0,0.00010899,2]
[351682758,1738719039492,-650.22,0.00010899,2]
[351682759,1738719039501,-500.0,0.00010899,2]
[351682760,1738719039511,-500.0,0.00010899,2]
[351682761,1738719039521,-271.93807833,0.00010899,2]
[351682762,1738719039531,-500.0,0.00010899,2]
[351682763,1738719039540,-500.0,0.00010899,2]
[351682764,1738719039550,-500.0,0.00010899,2]
[351682765,1738719039559,-500.0,0.00010899,2]
[351682766,1738719039568,-500.0,0.00010899,2]
[351682767,1738719039577,-500.0,0.00010899,2]
[351682768,1738719039586,-500.0,0.00010899,2]
[351682769,1738719039595,-500.0,0.00010899,2]
[351682770,1738719039604,-500.0,0.00010899,2]
[351682771,1738719039613,-523.65,0.00010899,2]
[351682772,1738719039622,-500.0,0.00010899,2]
[351682773,1738719039631,-201.61989441,0.00010899,2]
[351682774,1738719039640,-500.0,0.00010899,2]
[351682775,1738719039650,-500.0,0.00010899,2]
[351682776,1738719039659,-531.01,0.00010899,2]
[351682777,1738719039668,-500.0,0.00010899,2]
[351682778,1738719039677,-430.36319108,0.00010899,2]
[351682779,1738719039686,-542.15282688,0.00010899,2]
[351682780,1738719039695,-533.62332253,0.00010899,2]
[351682781,1738719039704,-500.0,0.00010899,2]
[351682782,1738719039714,-528.88907795,0.00010899,2]
[351682783,1738719039723,-460.96993433,0.00010899,2]
[351682784,1738719039734,-500.0,0.00010899,2]
[351682785,1738719039744,-537.13389748,0.00010899,2]
[351682786,1738719039754,-500.0,0.00010899,2]
[351682787,1738719039763,-829.97,0.00010899,2]
[351682788,1738719039772,-500.0,0.00010899,2]
[351682789,1738719039782,-1053033.662,0.000109,2]
[351682790,1738719039791,-215.5084241,0.000109,2]
[351682791,1738719039801,-150.0,0.00010959,2]
[351682792,1738719039811,-2709.68553366,0.00011,2]
[351682793,1738719039820,-618.11146766,0.00011013,2]
[351682794,1738719039831,-500.0,0.00011034,2]
[351682795,1738719039847,-500.0,0.00011034,2]
[351682796,1738719039856,-500.0,0.00011034,2]
[351682797,1738719039866,-500.0,0.00011034,2]
[351682798,1738719039875,-500.0,0.00011034,2]
[351682799,1738719039885,-500.0,0.00011034,2]
[351682800,1738719039896,-500.0,0.00011034,2]
[351682801,1738719039906,-500.0,0.00011034,2]
[351682802,1738719039915,-500.0,0.00011034,2]
[351682803,1738719039924,-500.0,0.00011035,2]
[351682804,1738719039934,-500.0,0.00011035,2]
[351682805,1738719039944,-500.0,0.00011035,2]
[351682806,1738719039953,-500.0,0.00011035,2]
[351682807,1738719039963,-500.0,0.00011035,2]
[351682808,1738719039973,-500.0,0.00011035,2]
[351682809,1738719039983,-500.0,0.00011035,2]
[351682810,1738719039993,-500.0,0.00011035,2]
[351682811,1738719040003,-500.0,0.00011035,2]
[351682812,1738719040013,-500.0,0.00011035,2]
[351682813,1738719040024,-500.0,0.00011035,2]
[351682814,1738719040033,-500.0,0.00011035,2]
[351682815,1738719040044,-500.0,0.00011035,2]
[351682816,1738719040054,-500.0,0.00011035,2]
[351682817,1738719040063,-500.0,0.00011035,2]
[351682818,1738719040072,-500.0,0.00011035,2]
[351682822,1738719040081,-500.0,0.00011035,2]
[351682824,1738719040090,-500.0,0.00011035,2]
[351682825,1738719040099,-500.0,0.00011035,2]
[351682826,1738719040108,-500.0,0.00011035,2]
[351682827,1738719040116,-500.0,0.00011035,2]
[351682828,1738719040124,-500.0,0.00011035,2]
[351682829,1738719040133,-500.0,0.00011035,2]
[351682830,1738719040142,-500.0,0.00011035,2]
[351682831,1738719040151,-500.0,0.00011035,2]
[351682832,1738719040159,-500.0,0.00011035,2]
[351682833,1738719040168,-500.0,0.00011035,2]
[351682834,1738719040178,-500.0,0.00011035,2]
[351682835,1738719040187,-500.0,0.00011035,2]
[351682836,1738719040195,-500.0,0.00011035,2]
[351682837,1738719040204,-500.0,0.00011035,2]
[351682838,1738719040213,-500.0,0.00011036,2]
[351682839,1738719040222,-500.0,0.00011036,2]
[351682840,1738719040233,-500.0,0.00011036,2]
[351682841,1738719040242,-500.0,0.00011036,2]
[351682842,1738719040251,-500.0,0.00011036,2]
[351682843,1738719040261,-500.0,0.00011036,2]
[351682844,1738719040271,-500.0,0.00011036,2]
[351682845,1738719040280,-500.0,0.00011036,2]
[351682846,1738719040291,-650.22,0.00011036,2]
[351682847,1738719040300,-500.0,0.00011036,2]
[351682848,1738719040311,-500.0,0.00011036,2]
[351682849,1738719040321,-500.0,0.00011036,2]
[351682850,1738719040331,-500.0,0.00011036,2]
[351682851,1738719040341,-500.0,0.00011036,2]
[351682852,1738719040351,-500.0,0.00011036,2]
[351682853,1738719040361,-500.0,0.00011036,2]
[351682854,1738719040371,-500.0,0.00011036,2]
[351682855,1738719040380,-523.65,0.00011036,2]
[351682856,1738719040390,-500.0,0.00011036,2]
[351682857,1738719040399,-500.0,0.00011036,2]
[351682858,1738719040409,-500.0,0.00011036,2]
[351682859,1738719040419,-531.01,0.00011036,2]
[351682860,1738719040428,-500.0,0.00011036,2]
[351682861,1738719040438,-546.79855847,0.00011036,2]
[351682862,1738719040448,-500.0,0.00011036,2]
[351682863,1738719040457,-500.0,0.00011036,2]
[351682864,1738719040465,-829.97,0.00011036,2]
[351682865,1738719040476,-500.0,0.00011036,2]
[351682866,1738719040490,-1684.88,0.00011041,2]
[351682867,1738719040499,-546.03,0.00011041,2]
[351682868,1738719040508,-383.9003355,0.00011098,2]
[351682869,1738719040517,-1698.33823581,0.00011099,2]
[351682870,1738719040530,-1698.33823574,0.00011099,2]
[351682871,1738719040539,-1698.33823574,0.00011099,2]
[351682872,1738719040548,-1698.33823574,0.00011099,2]
[351682873,1738719040560,-1698.33823574,0.00011099,2]
[351682874,1738719040570,-1698.33823574,0.00011099,2]
[351682875,1738719040579,-1698.33823574,0.00011099,2]
[351682876,1738719040589,-1698.33823574,0.00011099,2]
[351682877,1738719040599,-168.5195844,0.00011171,2]
[351682878,1738719040608,-500.0,0.00011171,2]
[351682879,1738719040618,-500.0,0.00011171,2]
[351682880,1738719040627,-500.0,0.00011171,2]
[351682882,1738719040636,-500.0,0.00011171,2]
[351682884,1738719040647,-500.0,0.00011171,2]
[351682886,1738719040657,-500.0,0.00011171,2]
[351682888,1738719040667,-185.10189583,0.00011171,2]
[351682889,1738719040676,-500.0,0.00011171,2]
[351682890,1738719040686,-505.63317097,0.00011171,2]
[351682891,1738719040695,-500.0,0.00011172,2]
[351682892,1738719040705,-500.0,0.00011172,2]
[351682893,1738719040714,-500.0,0.00011172,2]
[351682894,1738719040724,-428.96,0.00011172,2]
[351682895,1738719040734,-500.0,0.00011172,2]
[351682896,1738719040744,-500.0,0.00011172,2]
[351682897,1738719040753,-500.0,0.00011172,2]
[351682898,1738719040763,-500.0,0.00011172,2]
[351682899,1738719040773,-500.0,0.00011172,2]
[351682900,1738719040782,-284.78,0.00011172,2]
[351682901,1738719040791,-500.0,0.00011172,2]
[351682902,1738719040801,-500.0,0.00011172,2]
[351682903,1738719040810,-500.0,0.00011172,2]
[351682904,1738719040819,-500.0,0.00011172,2]
[351682905,1738719040829,-500.0,0.00011172,2]